fUST/lending_fUST_20240423
["ID","MTS","AMOUNT","RATE_DAILY","PERIOD"]
[323201699,1713803468822,-428.62787582,0.00026575,2]
[323201700,1713803468832,-1145.36,0.00026575,2]
[323201701,1713803468841,-1979.75,0.00026575,2]
[323201702,1713803468851,-687.49,0.00026575,2]
[323201703,1713803468861,-500.0,0.00026575,2]
[323201704,1713803468871,-479.11912734,0.00026575,2]
[323201705,1713803468880,-2805.14,0.00026575,2]
[323201706,1713803468890,-1457.76,0.00026575,2]
[323201707,1713803468900,-615.64,0.00026575,2]
[323201708,1713803468909,-500.0,0.00026575,2]
[323201709,1713803468919,-544.83,0.00026575,2]
[323201710,1713803468928,-17777.59,0.00026575,2]
[323201711,1713803468938,-500.0,0.00026575,2]
[323201712,1713803468947,-3448.49,0.00026575,2]
[323201713,1713803468956,-500.0,0.00026575,2]
[323201714,1713803468965,-2063.27,0.00026575,2]
[323201715,1713803468975,-536.1,0.00026575,2]
[323201716,1713803468985,-626.86,0.00026575,2]
[323201717,1713803468994,-958.49,0.00026575,2]
[323201718,1713803469003,-209.33895912,0.00026588,2]
[323201719,1713803469013,-2041.22177496,0.000266,4]
[323201720,1713803469023,-153.0,0.00026603,2]
[323201721,1713803469032,-1528.87340148,0.00026603,2]
[323201722,1713803469043,-200.0,0.00026622,2]
[323201723,1713803469052,-154.82968734,0.00026622,2]
[323201724,1713803469061,-20000.81636363,0.00026622,2]
[323201725,1713803469070,-1000.0,0.00026622,2]
[323201726,1713803469078,-154.82968734,0.00026622,2]
[323201727,1713803469087,-10114.69792276,0.00026622,2]
[323201728,1713803469097,-122827.60972858,0.00026622,7]
[323201729,1713803469106,-162.78857378,0.00026622,2]
[323201730,1713803469115,-180.99188609,0.00026623,2]
[323201731,1713803469125,-1000.0,0.0002664,2]
[323201732,1713803469134,-1000.0,0.0002664,2]
[323201733,1713803469229,-1000.0,0.0002664,2]
[323201734,1713803469239,-1000.0,0.0002664,2]
[323201735,1713803469249,-1000.0,0.0002664,2]
[323201736,1713803469258,-1000.0,0.0002664,2]
[323201737,1713803469267,-1000.0,0.0002664,2]
[323201738,1713803469276,-1000.0,0.0002664,2]
[323201739,1713803469286,-1000.0,0.0002664,2]
[323201740,1713803469298,-1528.87340148,0.00026645,2]
[323201741,1713803469307,-155.25721891,0.0002666,2]
[323201742,1713803469316,-1238.97372681,0.00026676,2]
[323201743,1713803469326,-154.07814826,0.00026683,2]
[323201744,1713803469335,-1238.97372681,0.00026691,2]
[323201745,1713803469344,-1708.0868726,0.000267,2]
[323201746,1713803469353,-1238.97372681,0.000267,2]
[323201747,1713803469363,-6198.0,0.00026708,2]
[323201748,1713803469372,-154.25576797,0.0002672,2]
[323201749,1713803469381,-209.33895912,0.00026746,2]
[323201750,1713803469390,-154.25576797,0.00026774,2]
[323201751,1713803469399,-1528.87340148,0.00026785,2]
[323201752,1713803469408,-767.93,0.000268,10]
[323201753,1713803469418,-2000.0,0.000268,2]
[323201754,1713803469427,-1891.0,0.000268,2]
[323201755,1713803469436,-515.55168093,0.000268,2]
[323201756,1713803469446,-1238.97372681,0.00026827,2]
[323201757,1713803469455,-1238.97372681,0.00026831,2]
[323201758,1713803469465,-1528.87340148,0.00026833,2]
[323201759,1713803469474,-209.33895912,0.00026839,2]
[323201760,1713803469484,-1528.87340148,0.0002684,2]
[323201761,1713803469493,-209.33895912,0.00026843,2]
[323201762,1713803469503,-1238.97372681,0.00026843,2]
[323201763,1713803469516,-154.25576797,0.00026847,2]
[323201764,1713803469525,-500.0,0.00026849,2]
[323201765,1713803469535,-528.24,0.00026849,2]
[323201766,1713803469546,-544.97,0.00026849,2]
[323201767,1713803469557,-559.79,0.00026849,2]
[323201768,1713803469567,-904.94,0.00026849,2]
[323201769,1713803469577,-1277.37,0.00026849,2]
[323201770,1713803469586,-1183.54,0.00026849,2]
[323201771,1713803469596,-599.28544606,0.00026849,2]
[323201772,1713803469606,-663.87,0.00026849,2]
[323201773,1713803469616,-625.96,0.00026849,2]
[323201774,1713803469625,-500.0,0.00026849,2]
[323201775,1713803469635,-885.23,0.00026849,2]
[323201776,1713803469645,-517.26,0.00026849,2]
[323201777,1713803469655,-527.47,0.00026849,2]
[323201778,1713803469665,-531.99,0.00026849,2]
[323201779,1713803469674,-1948.33,0.00026849,2]
[323201780,1713803469685,-500.0,0.00026849,2]
[323201781,1713803469694,-627.86,0.00026849,2]
[323201782,1713803469703,-544.5,0.00026849,2]
[323201783,1713803469712,-786.17,0.00026849,2]
[323201784,1713803469721,-505.48,0.00026849,2]
[323201785,1713803469730,-2183.24,0.00026849,2]
[323201786,1713803469739,-1145.36,0.00026849,2]
[323201787,1713803469749,-1979.75,0.00026849,2]
[323201788,1713803469759,-687.49,0.00026849,2]
[323201789,1713803469770,-500.0,0.00026849,2]
[323201790,1713803469779,-2805.14,0.00026849,2]
[323201791,1713803469789,-1457.76,0.00026849,2]
[323201792,1713803469800,-615.64,0.00026849,2]
[323201793,1713803469809,-500.0,0.00026849,2]
[323201794,1713803469818,-544.83,0.00026849,2]
[323201795,1713803469829,-17777.59,0.00026849,2]
[323201796,1713803469839,-448.90544986,0.00026849,2]
[323201797,1713803469850,-3448.49,0.00026849,2]
[323201798,1713803469859,-500.0,0.00026849,2]
[323201799,1713803469868,-2063.27,0.00026849,2]
[323201800,1713803469878,-536.1,0.00026849,2]
[323201801,1713803469889,-626.86,0.00026849,2]
[323201802,1713803469899,-958.49,0.00026849,2]
[323201803,1713803469909,-154.25576797,0.00026899,2]
[323201804,1713803469919,-154.25576797,0.00026905,2]
[323201805,1713803469928,-155.25721891,0.0002692,2]
[323201806,1713803469937,-1238.97372681,0.00026922,2]
[323201807,1713803469948,-154.25576797,0.00026923,2]
[323201808,1713803469958,-155.25721891,0.00026931,2]
[323201809,1713803469966,-154.07814826,0.00026937,2]
[323201810,1713803469977,-1528.87340148,0.00026939,2]
[323201811,1713803469986,-155.25721891,0.00026957,2]
[323201812,1713803469994,-23508.45383788,0.00026967,2]
[323201813,1713803470004,-154.25576797,0.00026984,2]
[323201814,1713803470013,-166.81042853,0.00026989,4]
[323201815,1713803470022,-154.87609912,0.00027,2]
[323201816,1713803470031,-637.98117757,0.00027,20]
[323201817,1713803470041,-1000.0,0.00027,2]
[323201818,1713803470051,-300.0,0.00027,2]
[323201819,1713803470060,-300.0,0.00027,2]
[323201820,1713803470069,-5791.74091608,0.00027,2]
[323201821,1713803470078,-2284.69605746,0.00027,2]
[323201822,1713803470088,-1336.13110849,0.00027,2]
[323201823,1713803470097,-5025.95165244,0.00027,2]
[323201824,1713803470106,-803.89628351,0.00027,2]
[323201825,1713803470117,-209.33895912,0.00027011,2]
[323201826,1713803470127,-1528.87340148,0.00027038,2]
[323201827,1713803470137,-1238.97372681,0.00027052,2]
[323201828,1713803470148,-1528.87340148,0.00027065,2]
[323201829,1713803470157,-1528.87340148,0.00027075,2]
[323201830,1713803470166,-1238.97372681,0.00027086,2]
[323201831,1713803470176,-154.07814826,0.00027088,2]
[323201832,1713803470186,-1238.97372681,0.00027097,2]
[323201833,1713803470195,-155.25721891,0.00027109,2]
[323201834,1713803470205,-500.0,0.00027123,2]
[323201835,1713803470215,-528.24,0.00027123,2]
[323201836,1713803470226,-544.97,0.00027123,2]
[323201837,1713803470235,-559.79,0.00027123,2]
[323201838,1713803470245,-904.94,0.00027123,2]
[323201839,1713803470254,-1277.37,0.00027123,2]
[323201840,1713803470263,-1183.54,0.00027123,2]
[323201841,1713803470273,-663.87,0.00027123,2]
[323201842,1713803470283,-625.96,0.00027123,2]
[323201843,1713803470295,-500.0,0.00027123,2]
[323201844,1713803470304,-885.23,0.00027123,2]
[323201845,1713803470313,-517.26,0.00027123,2]
[323201846,1713803470322,-527.47,0.00027123,2]
[323201847,1713803470331,-531.99,0.00027123,2]
[323201848,1713803470341,-1948.33,0.00027123,2]
[323201849,1713803470351,-500.0,0.00027123,2]
[323201850,1713803470361,-627.86,0.00027123,2]
[323201851,1713803470370,-544.5,0.00027123,2]
[323201852,1713803470379,-786.17,0.00027123,2]
[323201853,1713803470388,-505.48,0.00027123,2]
[323201854,1713803470397,-2183.24,0.00027123,2]
[323201855,1713803470406,-1145.36,0.00027123,2]
[323201856,1713803470416,-1979.75,0.00027123,2]
[323201857,1713803470426,-687.49,0.00027123,2]
[323201858,1713803470435,-500.0,0.00027123,2]
[323201859,1713803470444,-2805.14,0.00027123,2]
[323201860,1713803470455,-1457.76,0.00027123,2]
[323201861,1713803470464,-615.64,0.00027123,2]
[323201862,1713803470475,-223.73471368,0.00027123,2]
[323201863,1713803470484,-544.83,0.00027123,2]
[323201864,1713803470495,-17777.59,0.00027123,2]
[323201865,1713803470505,-3448.49,0.00027123,2]
[323201866,1713803470515,-500.0,0.00027123,2]
[323201867,1713803470526,-2063.27,0.00027123,2]
[323201868,1713803470536,-536.1,0.00027123,2]
[323201869,1713803470547,-626.86,0.00027123,2]
[323201870,1713803470557,-958.49,0.00027123,2]
[323201871,1713803470566,-1528.87340148,0.00027124,2]
[323201872,1713803470576,-1238.97372681,0.00027131,2]
[323201873,1713803470585,-160.0,0.00027132,3]
[323201874,1713803470596,-1528.87340148,0.00027147,2]
[323201875,1713803470605,-200.0,0.00027153,120]
[323201876,1713803470615,-209.33895912,0.00027169,2]
[323201877,1713803470625,-154.07814826,0.00027174,2]
[323201878,1713803470634,-155.25721891,0.00027178,2]
[323201879,1713803470644,-154.07814826,0.00027184,2]
[323201880,1713803470654,-1206.67266007,0.00027215,30]
[323201881,1713803470663,-1528.87340148,0.00027225,2]
[323201882,1713803470672,-209.33895912,0.00027248,2]
[323201883,1713803470681,-154.07814826,0.00027252,2]
[323201884,1713803470691,-154.25576797,0.00027257,2]
[323201885,1713803470701,-209.33895912,0.0002727,2]
[323201886,1713803470710,-1528.87340148,0.00027275,2]
[323201887,1713803470720,-1238.97372681,0.00027278,2]
[323201888,1713803470729,-154.07814826,0.00027281,2]
[323201889,1713803470738,-157.466,0.00027288,2]
[323201890,1713803470748,-209.33895912,0.00027292,2]
[323201891,1713803470758,-150.96279482,0.00027309,2]
[323201892,1713803470767,-160.0,0.00027327,4]
[323201893,1713803470777,-154.25576797,0.0002734,2]
[323201894,1713803470787,-155.25721891,0.00027343,2]
[323201895,1713803470798,-200.0,0.00027344,120]
[323201896,1713803470808,-1528.87340148,0.00027372,2]
[323201897,1713803470817,-1528.87340148,0.00027391,2]
[323201898,1713803470828,-155.25721891,0.00027392,2]
[323201899,1713803470838,-154.07814826,0.00027395,2]
[323201900,1713803470847,-155.25721891,0.00027395,2]
[323201901,1713803470856,-262.76854265,0.00027397,2]
[323201902,1713803470867,-500.0,0.00027397,2]
[323201903,1713803470876,-500.0,0.00027397,2]
[323201904,1713803470885,-500.0,0.00027397,2]
[323201905,1713803470895,-500.0,0.00027397,2]
[323201906,1713803470904,-500.0,0.00027397,2]
[323201907,1713803470914,-500.0,0.00027397,2]
[323201908,1713803470923,-500.0,0.00027397,2]
[323201909,1713803470932,-500.0,0.00027397,2]
[323201910,1713803471026,-500.0,0.00027397,2]
[323201911,1713803471035,-500.0,0.00027397,2]
[323201912,1713803471044,-500.0,0.00027397,2]
[323201913,1713803471053,-500.0,0.00027397,2]
[323201914,1713803471062,-500.0,0.00027397,2]
[323201915,1713803471071,-500.0,0.00027397,2]
[323201916,1713803471080,-500.0,0.00027397,2]
[323201917,1713803471090,-500.0,0.00027397,2]
[323201918,1713803471100,-500.0,0.00027397,2]
[323201919,1713803471109,-500.0,0.00027397,2]
[323201920,1713803471118,-500.0,0.00027397,2]
[323201921,1713803471127,-500.0,0.00027397,2]
[323201922,1713803471137,-500.0,0.00027397,2]
[323201923,1713803471146,-500.0,0.00027397,2]
[323201924,1713803471155,-500.0,0.00027397,2]
[323201925,1713803471165,-500.0,0.00027397,2]
[323201926,1713803471175,-500.0,0.00027397,2]
[323201927,1713803471183,-500.0,0.00027397,2]
[323201928,1713803471193,-500.0,0.00027397,2]
[323201929,1713803471202,-500.0,0.00027397,2]
[323201930,1713803471211,-500.0,0.00027397,2]
[323201931,1713803471220,-500.0,0.00027397,2]
[323201932,1713803471229,-500.0,0.00027397,2]
[323201933,1713803471239,-500.0,0.00027397,2]
[323201934,1713803471248,-500.0,0.00027397,2]
[323201935,1713803471257,-500.0,0.00027397,2]
[323201936,1713803471266,-500.0,0.00027397,2]
[323201937,1713803471275,-408.52175775,0.00027397,2]
[323201938,1713803471284,-500.0,0.00027397,2]
[323201939,1713803471295,-500.0,0.00027397,2]
[323201940,1713803471304,-500.0,0.00027397,2]
[323201941,1713803471313,-500.0,0.00027397,2]
[323201942,1713803471322,-250.0,0.00027397,2]
[323201943,1713803471331,-500.0,0.00027397,2]
[323201944,1713803471341,-500.0,0.00027397,2]
[323201945,1713803471351,-500.0,0.00027397,2]
[323201946,1713803471361,-500.0,0.00027397,2]
[323201947,1713803471370,-500.0,0.00027397,2]
[323201948,1713803471379,-500.0,0.00027397,2]
[323201949,1713803471389,-500.0,0.00027397,2]
[323201950,1713803471398,-500.0,0.00027397,2]
[323201951,1713803471408,-500.0,0.00027397,2]
[323201952,1713803471417,-500.0,0.00027397,2]
[323201953,1713803471426,-500.0,0.00027397,2]
[323201954,1713803471436,-500.0,0.00027397,2]
[323201955,1713803471445,-500.0,0.00027397,2]
[323201956,1713803471455,-334.33768276,0.00027397,2]
[323201957,1713803471464,-585.43,0.00027397,30]
[323201958,1713803471473,-585.43,0.00027397,30]
[323201959,1713803471483,-585.43,0.00027397,30]
[323201960,1713803471492,-585.43,0.00027397,30]
[323201961,1713803471501,-585.43,0.00027397,30]
[323201962,1713803471511,-585.43,0.00027397,30]
[323201963,1713803471522,-585.43,0.00027397,30]
[323201964,1713803471531,-585.43,0.00027397,30]
[323201965,1713803471541,-585.43,0.00027397,30]
[323201966,1713803471552,-585.43,0.00027397,30]
[323201967,1713803471562,-585.43,0.00027397,30]
[323201968,1713803471571,-585.43,0.00027397,30]
[323201969,1713803471580,-585.43,0.00027397,30]
[323201970,1713803471589,-585.43,0.00027397,30]
[323201971,1713803471599,-585.43,0.00027397,30]
[323201972,1713803471610,-585.43,0.00027397,30]
[323201973,1713803471619,-585.43,0.00027397,30]
[323201974,1713803471628,-585.43,0.00027397,30]
[323201975,1713803471637,-585.43,0.00027397,30]
[323201976,1713803471647,-585.43,0.00027397,30]
[323201977,1713803471656,-585.43,0.00027397,30]
[323201978,1713803471666,-528.24,0.00027397,2]
[323201979,1713803471675,-544.97,0.00027397,2]
[323201980,1713803471685,-1040.18559698,0.00027397,14]
[323201981,1713803471695,-513.0176494,0.00027397,14]
[323201982,1713803471704,-559.79,0.00027397,2]
[323201983,1713803471713,-904.94,0.00027397,2]
[323201984,1713803471722,-1277.37,0.00027397,2]
[323201985,1713803471731,-1183.54,0.00027397,2]
[323201986,1713803471740,-663.87,0.00027397,2]
[323201987,1713803471750,-625.96,0.00027397,2]
[323201988,1713803471759,-527.57839179,0.00027397,2]
[323201989,1713803471769,-885.23,0.00027397,2]
[323201990,1713803471778,-517.26,0.00027397,2]
[323201991,1713803471787,-527.47,0.00027397,2]
[323201992,1713803471798,-531.99,0.00027397,2]
[323201993,1713803471807,-500.0,0.00027397,2]
[323201994,1713803471816,-500.0,0.00027397,2]
[323201995,1713803471826,-500.0,0.00027397,2]
[323201996,1713803471836,-500.0,0.00027397,2]
[323201997,1713803471846,-500.0,0.00027397,2]
[323201998,1713803471856,-500.0,0.00027397,2]
[323201999,1713803471865,-500.0,0.00027397,2]
[323202000,1713803471874,-1948.33,0.00027397,2]
[323202001,1713803471883,-500.0,0.00027397,2]
[323202002,1713803471892,-500.0,0.00027397,2]
[323202003,1713803471901,-500.0,0.00027397,2]
[323202004,1713803471911,-500.0,0.00027397,2]
[323202005,1713803471920,-500.0,0.00027397,2]
[323202006,1713803471929,-500.0,0.00027397,2]
[323202007,1713803471939,-500.0,0.00027397,2]
[323202008,1713803471948,-500.0,0.00027397,2]
[323202009,1713803471957,-500.0,0.00027397,2]
[323202010,1713803471967,-500.0,0.00027397,2]
[323202011,1713803471976,-273.21953586,0.00027397,2]
[323202012,1713803471985,-500.0,0.00027397,2]
[323202013,1713803471994,-627.86,0.00027397,2]
[323202014,1713803472004,-544.5,0.00027397,2]
[323202015,1713803472013,-786.17,0.00027397,2]
[323202016,1713803472022,-505.48,0.00027397,2]
[323202017,1713803472031,-2183.24,0.00027397,2]
[323202018,1713803472040,-1145.36,0.00027397,2]
[323202019,1713803472051,-1979.75,0.00027397,2]
[323202020,1713803472060,-687.49,0.00027397,2]
[323202021,1713803472069,-500.0,0.00027397,2]
[323202022,1713803472078,-2805.14,0.00027397,2]
[323202023,1713803472087,-1457.76,0.00027397,2]
[323202024,1713803472097,-615.64,0.00027397,2]
[323202025,1713803472106,-544.83,0.00027397,2]
[323202026,1713803472116,-17777.59,0.00027397,2]
[323202027,1713803472125,-3448.49,0.00027397,2]
[323202028,1713803472135,-270.4253111,0.00027397,2]
[323202029,1713803472144,-2063.27,0.00027397,2]
[323202030,1713803472154,-536.1,0.00027397,2]
[323202031,1713803472163,-626.86,0.00027397,2]
[323202032,1713803472172,-958.49,0.00027397,2]
[323202033,1713803472182,-452.0,0.00027397,30]
[323202034,1713803472191,-453.8,0.00027397,10]
[323202035,1713803472201,-1000.0,0.00027397,2]
[323202036,1713803472209,-750.0,0.00027397,2]
[323202037,1713803472219,-166.666666,0.00027397,2]
[323202038,1713803472228,-10000.0,0.00027397,2]
[323202039,1713803472238,-975.06415372,0.000274,2]
[323202040,1713803472248,-154.25576797,0.00027432,2]
[323202041,1713803472258,-1238.97372681,0.00027443,2]
[323202042,1713803472268,-209.33895912,0.00027465,2]
[323202043,1713803472277,-209.33895912,0.00027466,2]
[323202044,1713803472287,-154.25576797,0.00027481,2]
[323202045,1713803472298,-154.25576797,0.00027484,2]
[323202046,1713803472308,-209.33895912,0.00027492,2]
[323202047,1713803472318,-804.41452936,0.000275,17]
[323202048,1713803472328,-38211.52029628,0.000275,2]
[323202049,1713803472338,-300.0,0.000275,2]
[323202050,1713803472349,-154.07814826,0.00027507,2]
[323202051,1713803472358,-155.25721891,0.00027515,2]
[323202052,1713803472367,-154.07814826,0.00027521,2]
[323202053,1713803472377,-160.0,0.00027523,5]
[323202054,1713803472386,-155.25721891,0.00027532,2]
[323202055,1713803472396,-154.07814826,0.00027534,2]
[323202056,1713803472405,-154.25576797,0.00027536,2]
[323202057,1713803472414,-154.07814826,0.00027549,2]
[323202058,1713803472424,-154.25576797,0.00027557,2]
[323202059,1713803472434,-155.25721891,0.00027563,2]
[323202060,1713803472443,-1528.87340148,0.0002757,2]
[323202061,1713803472453,-154.25576797,0.00027574,2]
[323202062,1713803472463,-151.0,0.00027576,2]
[323202063,1713803472472,-209.33895912,0.00027582,2]
[323202064,1713803472481,-154.25576797,0.00027603,2]
[323202065,1713803472491,-154.07814826,0.00027608,2]
[323202066,1713803472500,-154.07814826,0.0002761,2]
[323202067,1713803472511,-155.25721891,0.0002761,2]
[323202068,1713803472521,-209.33895912,0.00027613,2]
[323202069,1713803472530,-154.07814826,0.00027624,2]
[323202070,1713803472540,-209.33895912,0.00027637,2]
[323202071,1713803472552,-1238.97372681,0.00027649,2]
[323202072,1713803472563,-585.43,0.00027671,30]
[323202073,1713803472664,-528.24,0.00027671,7]
[323202074,1713803472675,-544.97,0.00027671,7]
[323202075,1713803472684,-559.79,0.00027671,7]
[323202076,1713803472693,-904.94,0.00027671,7]
[323202077,1713803472704,-1277.37,0.00027671,7]
[323202078,1713803472712,-1183.54,0.00027671,2]
[323202079,1713803472722,-663.87,0.00027671,7]
[323202080,1713803472731,-625.96,0.00027671,7]
[323202081,1713803472740,-885.23,0.00027671,7]
[323202082,1713803472749,-517.26,0.00027671,7]
[323202083,1713803472758,-527.47,0.00027671,7]
[323202084,1713803472767,-531.99,0.00027671,7]
[323202085,1713803472776,-1948.33,0.00027671,7]
[323202086,1713803472786,-500.0,0.00027671,7]
[323202087,1713803472797,-627.86,0.00027671,7]
[323202088,1713803472807,-544.5,0.00027671,7]
[323202089,1713803472816,-786.17,0.00027671,7]
[323202090,1713803472827,-505.48,0.00027671,7]
[323202091,1713803472836,-2183.24,0.00027671,7]
[323202092,1713803472846,-1528.87340148,0.00027671,2]
[323202093,1713803472856,-1145.36,0.00027671,7]
[323202094,1713803472865,-1979.75,0.00027671,7]
[323202095,1713803472875,-687.49,0.00027671,7]
[323202096,1713803472885,-362.77267944,0.00027671,7]
[323202097,1713803472894,-2805.14,0.00027671,7]
[323202098,1713803472903,-1457.76,0.00027671,7]
[323202099,1713803472913,-615.64,0.00027671,7]
[323202100,1713803472922,-544.83,0.00027671,7]
[323202101,1713803472932,-17777.59,0.00027671,7]
[323202102,1713803472941,-3448.49,0.00027671,7]
[323202103,1713803472951,-2063.27,0.00027671,7]
[323202104,1713803472961,-536.1,0.00027671,7]
[323202105,1713803472970,-626.86,0.00027671,7]
[323202106,1713803472979,-1528.87340148,0.00027688,2]
[323202107,1713803472988,-466.51510095,0.00027699,2]
[323202108,1713803472998,-154.07814826,0.00027699,2]
[323202109,1713803473007,-160.0,0.00027719,6]
[323202110,1713803473017,-1528.87340148,0.00027724,2]
[323202111,1713803473026,-155.25721891,0.0002773,2]
[323202112,1713803473035,-154.07814826,0.00027748,2]
[323202113,1713803473045,-154.07814826,0.00027761,2]
[323202114,1713803473054,-154.07814826,0.00027762,2]
[323202115,1713803473063,-154.82968734,0.0002777,2]
[323202116,1713803473072,-1741.7789811,0.0002777,2]
[323202117,1713803473082,-154.07814826,0.00027777,2]
[323202118,1713803473092,-54327.85052717,0.0002778,120]
[323202119,1713803473101,-1000.0,0.000278,5]
[323202120,1713803473110,-200.0,0.00027836,120]
[323202121,1713803473120,-154.25576797,0.00027844,2]
[323202122,1713803473129,-154.07814826,0.00027845,2]
[323202123,1713803473139,-155.25721891,0.00027856,2]
[323202124,1713803473148,-1528.87340148,0.00027875,2]
[323202125,1713803473157,-1528.87340148,0.00027907,2]
[323202126,1713803473167,-160.0,0.00027914,7]
[323202127,1713803473176,-1528.87340148,0.00027915,2]
[323202128,1713803473185,-585.43,0.00027945,30]
[323202129,1713803473195,-528.24,0.00027945,7]
[323202130,1713803473204,-544.97,0.00027945,7]
[323202131,1713803473214,-559.79,0.00027945,7]
[323202132,1713803473223,-904.94,0.00027945,7]
[323202133,1713803473232,-1277.37,0.00027945,7]
[323202134,1713803473242,-1183.54,0.00027945,2]
[323202135,1713803473251,-663.87,0.00027945,7]
[323202136,1713803473261,-625.96,0.00027945,7]
[323202137,1713803473271,-885.23,0.00027945,7]
[323202138,1713803473280,-517.26,0.00027945,7]
[323202139,1713803473290,-527.47,0.00027945,7]
[323202140,1713803473301,-531.99,0.00027945,7]
[323202141,1713803473311,-1948.33,0.00027945,7]
[323202142,1713803473321,-500.0,0.00027945,7]
[323202143,1713803473330,-627.86,0.00027945,7]
[323202144,1713803473340,-544.5,0.00027945,7]
[323202145,1713803473349,-786.17,0.00027945,7]
[323202146,1713803473359,-505.48,0.00027945,7]
[323202147,1713803473369,-2183.24,0.00027945,7]
[323202148,1713803473378,-1145.36,0.00027945,7]
[323202149,1713803473388,-1979.75,0.00027945,7]
[323202150,1713803473403,-687.49,0.00027945,7]
[323202151,1713803473424,-2805.14,0.00027945,7]
[323202152,1713803473439,-1457.76,0.00027945,7]
[323202153,1713803473456,-615.64,0.00027945,7]
[323202154,1713803473474,-544.83,0.00027945,7]
[323202155,1713803473490,-17777.59,0.00027945,7]
[323202156,1713803473505,-3448.49,0.00027945,7]
[323202157,1713803473523,-2063.27,0.00027945,7]
[323202158,1713803473539,-536.1,0.00027945,7]
[323202159,1713803473555,-154.07814826,0.00027951,2]
[323202160,1713803473571,-508.46061792,0.00028,2]
[323202161,1713803473588,-5034.04,0.00028,7]
[323202162,1713803473604,-368.02045799,0.00028,2]
[323202163,1713803473621,-368.02045799,0.00028,2]
[323202164,1713803473645,-368.02045799,0.00028,2]
[323202165,1713803473660,-368.02045799,0.00028,2]
[323202166,1713803473672,-368.02045799,0.00028,2]
[323202167,1713803473687,-368.02045799,0.00028,2]
[323202168,1713803473703,-368.02045799,0.00028,2]
[323202169,1713803473715,-368.02045799,0.00028,2]
[323202170,1713803473729,-368.02045799,0.00028,2]
[323202171,1713803473743,-368.02045799,0.00028,2]
[323202172,1713803473757,-368.02045799,0.00028,2]
[323202173,1713803473771,-368.02045799,0.00028,2]
[323202174,1713803473785,-368.02045799,0.00028,2]
[323202175,1713803473800,-368.02045799,0.00028,2]
[323202176,1713803473813,-368.02045799,0.00028,2]
[323202177,1713803473827,-368.02045799,0.00028,2]
[323202178,1713803473841,-368.02045,0.00028,2]
[323202179,1713803473854,-171.85948701,0.00028,2]
[323202180,1713803473867,-313410.55915903,0.00028,4]
[323202181,1713803474260,-6575.86,0.00025205,2]
[323202182,1713803474273,-6575.86,0.00025479,2]
[323202183,1713803474286,-6417.21023654,0.00025753,2]
[323202184,1713803474304,-158.64976346,0.00025753,2]
[323202185,1713803474317,-1909.94803573,0.00026027,2]
[323202193,1713803638597,-2099.05646455,0.00019892,2]
[323202194,1713803638617,-927.5718807,0.00019893,2]
[323202195,1713803638638,-419.39507495,0.00019893,2]
[323202196,1713803638659,-603.23240406,0.00019893,2]
[323202197,1713803638679,-154.82968734,0.00019894,2]
[323202198,1713803638699,-168.732055,0.00019895,2]
[323202199,1713803638720,-613.53984377,0.0002,2]
[323202200,1713803638741,-689.33608369,0.0002,2]
[323202201,1713803638765,-241.47273892,0.0002,2]
[323202202,1713803638786,-677.92303889,0.0002,2]
[323202203,1713803638807,-154.82968734,0.0002,2]
[323202204,1713803638828,-200.0,0.00020894,2]
[323202205,1713803638848,-354.73903456,0.00020949,2]